[Event "*** SCC Grand Prix: Titled Tuesday Blitz"]
[Site "Chess.com"]
[Date "2020.08.11"]
[Round "2"]
[White "VincentKeymer"]
[Black "warmoatmeal"]
[Result "0-1"]
[WhiteElo "2886"]
[BlackElo "2346"]
[TimeControl "180+1"]
[EndTime "10:18:21 PDT"]
[Termination "warmoatmeal won by checkmate"]

1. Nf3 {[%clk 0:03:00.9]} 1... Nf6 {[%clk 0:02:59.4]} 2. c4 {[%clk 0:03:00.7]}
2... e6 {[%clk 0:02:59.1]} 3. Nc3 {[%clk 0:03:01.3]} 3... d5 {[%clk 0:02:56.1]}
4. e3 {[%clk 0:03:01.4]} 4... c5 {[%clk 0:02:49.5]} 5. cxd5 {[%clk 0:02:57.8]}
5... exd5 {[%clk 0:02:50.4]} 6. d4 {[%clk 0:02:55.8]} 6... Nc6 {[%clk
0:02:44.4]} 7. Bb5 {[%clk 0:02:54.3]} 7... a6 {[%clk 0:02:41.5]} 8. Bxc6+ {[%clk
0:02:49.2]} 8... bxc6 {[%clk 0:02:42.4]} 9. O-O {[%clk 0:02:43.4]} 9... Bd6
{[%clk 0:02:40.8]} 10. dxc5 {[%clk 0:02:43.2]} 10... Bxc5 {[%clk 0:02:41.7]} 11.
Qa4 {[%clk 0:02:43.5]} 11... Bd7 {[%clk 0:02:39.7]} 12. b3 {[%clk 0:02:41.6]}
12... O-O {[%clk 0:02:39]} 13. Ba3 {[%clk 0:02:41.1]} 13... Qe7 {[%clk
0:02:38.5]} 14. Bxc5 {[%clk 0:02:38.6]} 14... Qxc5 {[%clk 0:02:39.4]} 15. Rac1
{[%clk 0:02:38.9]} 15... Qd6 {[%clk 0:02:37.9]} 16. Rfd1 {[%clk 0:02:39.1]}
16... Rfd8 {[%clk 0:02:35.1]} 17. h3 {[%clk 0:02:27.1]} 17... Qe7 {[%clk
0:02:32.9]} 18. Qf4 {[%clk 0:02:23.3]} 18... h6 {[%clk 0:02:32.1]} 19. Qe5
{[%clk 0:01:57.3]} 19... Qa3 {[%clk 0:02:15.4]} 20. Nd4 {[%clk 0:01:30.6]} 20...
Rac8 {[%clk 0:02:13.4]} 21. Nf5 {[%clk 0:01:16.4]} 21... Bxf5 {[%clk 0:02:04.1]}
22. Qxf5 {[%clk 0:01:17.3]} 22... c5 {[%clk 0:01:57.7]} 23. Rc2 {[%clk
0:01:08.5]} 23... d4 {[%clk 0:01:36.8]} 24. exd4 {[%clk 0:01:04.7]} 24... cxd4
{[%clk 0:01:37.7]} 25. Nb5 {[%clk 0:00:54.6]} 25... Qf8 {[%clk 0:01:27.6]} 26.
Rxc8 {[%clk 0:00:26.2]} 26... Rxc8 {[%clk 0:01:25.1]} 27. Nxd4 {[%clk
0:00:26.7]} 27... Rd8 {[%clk 0:01:20.5]} 28. Qc2 {[%clk 0:00:22.2]} 28... Qa3
{[%clk 0:01:15.6]} 29. Nf5 {[%clk 0:00:17.1]} 29... Rxd1+ {[%clk 0:01:13.5]} 30.
Qxd1 {[%clk 0:00:18]} 30... Qxa2 {[%clk 0:01:10.2]} 31. g4 {[%clk 0:00:18.1]}
31... Ne4 {[%clk 0:01:02.5]} 32. Qd4 {[%clk 0:00:16.7]} 32... Nf6 {[%clk
0:00:51.2]} 33. Qd8+ {[%clk 0:00:15.9]} 33... Kh7 {[%clk 0:00:51.4]} 34. Qf8
{[%clk 0:00:16.3]} 34... Qa1+ {[%clk 0:00:50.5]} 35. Kg2 {[%clk 0:00:14.5]}
35... Nd5 {[%clk 0:00:49.4]} 36. Qxf7 {[%clk 0:00:14.9]} 36... Nf4+ {[%clk
0:00:48.9]} 37. Kg3 {[%clk 0:00:12.9]} 37... Ng6 {[%clk 0:00:42.3]} 38. h4
{[%clk 0:00:08.5]} 38... Qg1+ {[%clk 0:00:41.3]} 39. Kh3 {[%clk 0:00:05.8]}
39... Nf4# {[%clk 0:00:40.7]} 0-1

[Event "*** SCC Grand Prix: Titled Tuesday Blitz"]
[Site "Chess.com"]
[Date "2020.08.11"]
[Round "2"]
[White "AJSC02"]
[Black "Makswolf200817"]
[Result "1-0"]
[WhiteElo "2266"]
[BlackElo "2438"]
[TimeControl "180+1"]
[EndTime "10:18:22 PDT"]
[Termination "AJSC02 won by checkmate"]

1. e4 {[%clk 0:03:00.9]} 1... c5 {[%clk 0:02:59.9]} 2. Nf3 {[%clk 0:03:00.9]}
2... e6 {[%clk 0:03:00.2]} 3. c3 {[%clk 0:03:00]} 3... d5 {[%clk 0:02:58.6]} 4.
exd5 {[%clk 0:03:00]} 4... exd5 {[%clk 0:02:58]} 5. d4 {[%clk 0:03:00]} 5... Nc6
{[%clk 0:02:53.4]} 6. Bb5 {[%clk 0:02:59.4]} 6... Nf6 {[%clk 0:02:49.2]} 7. Bg5
{[%clk 0:02:58.8]} 7... Be7 {[%clk 0:02:48.6]} 8. O-O {[%clk 0:02:58.4]} 8...
O-O {[%clk 0:02:48.6]} 9. dxc5 {[%clk 0:02:57.2]} 9... h6 {[%clk 0:02:42.8]} 10.
Bf4 {[%clk 0:02:52.8]} 10... Bxc5 {[%clk 0:02:40.9]} 11. h3 {[%clk 0:02:46.2]}
11... a6 {[%clk 0:02:32.8]} 12. Ba4 {[%clk 0:02:24]} 12... Bf5 {[%clk
0:02:25.3]} 13. Bc2 {[%clk 0:02:14.8]} 13... Ne4 {[%clk 0:02:22]} 14. Nbd2
{[%clk 0:02:09.1]} 14... Qb6 {[%clk 0:02:18.1]} 15. Nxe4 {[%clk 0:01:53.1]}
15... dxe4 {[%clk 0:02:13]} 16. Nh4 {[%clk 0:01:51.6]} 16... Bh7 {[%clk
0:02:11.6]} 17. b4 {[%clk 0:01:48.5]} 17... Be7 {[%clk 0:02:07]} 18. Qh5 {[%clk
0:01:26.4]} 18... Qb5 {[%clk 0:01:53.8]} 19. Qg4 {[%clk 0:01:01.2]} 19... Kh8
{[%clk 0:01:35]} 20. a4 {[%clk 0:00:53.7]} 20... Qd5 {[%clk 0:01:28.9]} 21. Rad1
{[%clk 0:00:50.4]} 21... Qe6 {[%clk 0:01:28.1]} 22. Qh5 {[%clk 0:00:09.1]} 22...
g5 {[%clk 0:01:24]} 23. Be3 {[%clk 0:00:04.4]} 23... gxh4 {[%clk 0:01:23.2]} 24.
Bxh6 {[%clk 0:00:04.4]} 24... Rg8 {[%clk 0:01:21.8]} 25. Rfe1 {[%clk 0:00:03.9]}
25... Qf5 {[%clk 0:01:13.6]} 26. Qxf5 {[%clk 0:00:02.1]} 26... Bxf5 {[%clk
0:01:12.8]} 27. Bxe4 {[%clk 0:00:03]} 27... Bxe4 {[%clk 0:01:10.9]} 28. Rxe4
{[%clk 0:00:03.9]} 28... Bf6 {[%clk 0:01:11.8]} 29. Rf4 {[%clk 0:00:03.2]} 29...
Rg6 {[%clk 0:01:11.7]} 30. Rd7 {[%clk 0:00:02.8]} 30... Rxh6 {[%clk 0:01:11.4]}
31. Rxf7 {[%clk 0:00:02.9]} 31... Bxc3 {[%clk 0:01:10]} 32. Rxb7 {[%clk
0:00:03.8]} 32... Re8 {[%clk 0:01:08.7]} 33. Rc4 {[%clk 0:00:03.1]} 33... Re1+
{[%clk 0:01:08]} 34. Kh2 {[%clk 0:00:03.5]} 34... Be5+ {[%clk 0:01:08.9]} 35. g3
{[%clk 0:00:04.3]} 35... hxg3+ {[%clk 0:01:08.9]} 36. fxg3 {[%clk 0:00:05.2]}
36... Re2+ {[%clk 0:01:09.8]} 37. Kg1 {[%clk 0:00:05.4]} 37... Rxh3 {[%clk
0:01:08.3]} 38. Rxc6 {[%clk 0:00:04.5]} 38... Bd4+ {[%clk 0:01:07.6]} 39. Kf1
{[%clk 0:00:04.6]} 39... Rf2+ {[%clk 0:01:08.5]} 40. Kg1 {[%clk 0:00:03.7]}
40... Rh1+ {[%clk 0:01:09.4]} 41. Kxh1 {[%clk 0:00:03.3]} 41... Rf1+ {[%clk
0:01:04.3]} 42. Kg2 {[%clk 0:00:03.5]} 42... Rg1+ {[%clk 0:01:01.3]} 43. Kh3
{[%clk 0:00:03.6]} 43... Rh1+ {[%clk 0:01:02.2]} 44. Kg4 {[%clk 0:00:04]} 44...
Rb1 {[%clk 0:01:03.1]} 45. Rc8# {[%clk 0:00:04.2]} 1-0

[Event "*** SCC Grand Prix: Titled Tuesday Blitz"]
[Site "Chess.com"]
[Date "2020.08.11"]
[Round "2"]
[White "Sadykov_Ramil"]
[Black "vrekhson"]
[Result "1-0"]
[WhiteElo "2400"]
[BlackElo "2147"]
[TimeControl "180+1"]
[EndTime "10:18:24 PDT"]
[Termination "Sadykov_Ramil won by checkmate"]

1. e4 {[%clk 0:03:00.9]} 1... c5 {[%clk 0:03:00]} 2. Nf3 {[%clk 0:02:56.2]} 2...
a6 {[%clk 0:03:00.3]} 3. Nc3 {[%clk 0:02:55.7]} 3... b5 {[%clk 0:02:54.6]} 4. d4
{[%clk 0:02:55.3]} 4... cxd4 {[%clk 0:02:54.6]} 5. Nxd4 {[%clk 0:02:56.2]} 5...
Bb7 {[%clk 0:02:49.7]} 6. Be3 {[%clk 0:02:29.3]} 6... d6 {[%clk 0:02:37.8]} 7.
Bd3 {[%clk 0:02:11.9]} 7... Nf6 {[%clk 0:02:36.5]} 8. f3 {[%clk 0:02:11.1]} 8...
Nbd7 {[%clk 0:02:34.2]} 9. O-O {[%clk 0:02:09.5]} 9... g6 {[%clk 0:02:33.8]} 10.
Re1 {[%clk 0:02:08.5]} 10... Bg7 {[%clk 0:02:33.7]} 11. a4 {[%clk 0:01:52.4]}
11... b4 {[%clk 0:02:31.1]} 12. Na2 {[%clk 0:01:52.4]} 12... a5 {[%clk
0:02:30.1]} 13. c3 {[%clk 0:01:52.6]} 13... bxc3 {[%clk 0:02:28.4]} 14. Nxc3
{[%clk 0:01:50.6]} 14... O-O {[%clk 0:02:28.1]} 15. Qd2 {[%clk 0:01:49]} 15...
Nc5 {[%clk 0:02:25.4]} 16. Bc2 {[%clk 0:01:47.4]} 16... Ba6 {[%clk 0:02:16.5]}
17. Rad1 {[%clk 0:01:34.4]} 17... Rb8 {[%clk 0:02:14.7]} 18. Nc6 {[%clk
0:01:30.5]} 18... Qb6 {[%clk 0:02:12.9]} 19. Nxb8 {[%clk 0:01:29.4]} 19... Rxb8
{[%clk 0:02:13.8]} 20. Rb1 {[%clk 0:01:26.8]} 20... Qb4 {[%clk 0:02:09.1]} 21.
Red1 {[%clk 0:01:21]} 21... h5 {[%clk 0:01:57]} 22. Qf2 {[%clk 0:01:08.6]} 22...
Bb7 {[%clk 0:01:46.4]} 23. e5 {[%clk 0:01:07.6]} 23... Nfd7 {[%clk 0:01:38.9]}
24. exd6 {[%clk 0:01:07.1]} 24... exd6 {[%clk 0:01:39.8]} 25. Rxd6 {[%clk
0:01:03]} 25... Be5 {[%clk 0:01:26.1]} 26. Rdd1 {[%clk 0:00:53.1]} 26... Bc6
{[%clk 0:01:26.1]} 27. Nd5 {[%clk 0:00:49.4]} 27... Bxd5 {[%clk 0:01:19.1]} 28.
Rxd5 {[%clk 0:00:50.3]} 28... Qc4 {[%clk 0:01:07.6]} 29. Rbd1 {[%clk 0:00:42.9]}
29... Rxb2 {[%clk 0:01:06.2]} 30. R1d2 {[%clk 0:00:40.4]} 30... Bc3 {[%clk
0:00:57.4]} 31. Qe2 {[%clk 0:00:32.3]} 31... Qa2 {[%clk 0:00:53.5]} 32. Bxc5
{[%clk 0:00:28.7]} 32... Bxd2 {[%clk 0:00:49.5]} 33. Qe8+ {[%clk 0:00:21.1]}
33... Kg7 {[%clk 0:00:27.4]} 34. Bd4+ {[%clk 0:00:20.3]} 34... Nf6 {[%clk
0:00:20.8]} 35. Bxf6+ {[%clk 0:00:19.5]} 35... Kxf6 {[%clk 0:00:21]} 36. Qe5#
{[%clk 0:00:19.1]} 1-0

[Event "*** SCC Grand Prix: Titled Tuesday Blitz"]
[Site "Chess.com"]
[Date "2020.08.11"]
[Round "2"]
[White "volcanoexplorer"]
[Black "Bigfish1995"]
[Result "1-0"]
[WhiteElo "2610"]
[BlackElo "2965"]
[TimeControl "180+1"]
[EndTime "10:18:27 PDT"]
[Termination "volcanoexplorer won by checkmate"]

1. e4 {[%clk 0:03:00.9]} 1... c6 {[%clk 0:02:59.3]} 2. d4 {[%clk 0:03:00.5]}
2... d5 {[%clk 0:02:59.5]} 3. exd5 {[%clk 0:03:01]} 3... cxd5 {[%clk 0:02:59.6]}
4. Bd3 {[%clk 0:03:01.5]} 4... Nc6 {[%clk 0:02:59.2]} 5. c3 {[%clk 0:03:02.1]}
5... Qc7 {[%clk 0:02:59.5]} 6. h3 {[%clk 0:02:59.9]} 6... e6 {[%clk 0:02:58.9]}
7. Nf3 {[%clk 0:02:59.8]} 7... Bd6 {[%clk 0:02:59]} 8. O-O {[%clk 0:02:59.8]}
8... Nge7 {[%clk 0:02:59.2]} 9. Re1 {[%clk 0:03:00.3]} 9... O-O {[%clk
0:02:59.3]} 10. Bxh7+ {[%clk 0:01:59.2]} 10... Kxh7 {[%clk 0:02:57.5]} 11. Ng5+
{[%clk 0:01:59.6]} 11... Kg6 {[%clk 0:02:58]} 12. Qg4 {[%clk 0:01:38.1]} 12...
f5 {[%clk 0:02:50.4]} 13. Qh4 {[%clk 0:01:38.1]} 13... Ng8 {[%clk 0:01:45.7]}
14. Qh7+ {[%clk 0:01:00.4]} 14... Kf6 {[%clk 0:01:44.2]} 15. Nxe6 {[%clk
0:00:42.5]} 15... Bxe6 {[%clk 0:01:34]} 16. Bg5+ {[%clk 0:00:42.6]} 16... Kxg5
{[%clk 0:01:07.9]} 17. Rxe6 {[%clk 0:00:40.1]} 17... Rf6 {[%clk 0:01:00.3]} 18.
h4+ {[%clk 0:00:30.4]} 18... Kg4 {[%clk 0:00:59.2]} 19. Rxf6 {[%clk 0:00:19.2]}
19... Bh2+ {[%clk 0:00:21.4]} 20. Kh1 {[%clk 0:00:15.9]} 20... Nxf6 {[%clk
0:00:17.2]} 21. Qg6+ {[%clk 0:00:15.5]} 21... Kf4 {[%clk 0:00:17.8]} 22. Nd2
{[%clk 0:00:10.7]} 22... Ne4 {[%clk 0:00:14.8]} 23. Kxh2 {[%clk 0:00:05.2]}
23... Nxd2 {[%clk 0:00:02]} 24. Qg3+ {[%clk 0:00:05.2]} 24... Ke4 {[%clk
0:00:02.9]} 25. Re1# {[%clk 0:00:05.1]} 1-0

[Event "*** SCC Grand Prix: Titled Tuesday Blitz"]
[Site "Chess.com"]
[Date "2020.08.11"]
[Round "2"]
[White "Juanovic"]
[Black "Parhamov"]
[Result "0-1"]
[WhiteElo "2067"]
[BlackElo "3066"]
[TimeControl "180+1"]
[EndTime "10:18:28 PDT"]
[Termination "Parhamov won by checkmate"]

1. e4 {[%clk 0:03:00.9]} 1... e6 {[%clk 0:02:55.4]} 2. d4 {[%clk 0:02:55.7]}
2... d5 {[%clk 0:02:53.7]} 3. Nc3 {[%clk 0:02:55.7]} 3... Bb4 {[%clk 0:02:51.1]}
4. e5 {[%clk 0:02:55.1]} 4... Qd7 {[%clk 0:02:50.3]} 5. a3 {[%clk 0:02:01]} 5...
Bf8 {[%clk 0:02:48.4]} 6. Bb5 {[%clk 0:01:55.1]} 6... c6 {[%clk 0:02:46.8]} 7.
Bd3 {[%clk 0:01:54]} 7... c5 {[%clk 0:02:45]} 8. Bb5 {[%clk 0:01:52.8]} 8... Nc6
{[%clk 0:02:44.7]} 9. Nf3 {[%clk 0:01:51.2]} 9... cxd4 {[%clk 0:02:36.6]} 10.
Nxd4 {[%clk 0:01:47.6]} 10... Nge7 {[%clk 0:02:36.2]} 11. O-O {[%clk 0:01:44.8]}
11... a6 {[%clk 0:02:34.4]} 12. Nxc6 {[%clk 0:01:43.2]} 12... Nxc6 {[%clk
0:02:32.6]} 13. Bxc6 {[%clk 0:01:26.6]} 13... bxc6 {[%clk 0:02:31.4]} 14. Qg4
{[%clk 0:01:23.1]} 14... c5 {[%clk 0:02:29.3]} 15. f4 {[%clk 0:01:19.3]} 15...
Qc6 {[%clk 0:02:05.3]} 16. Bd2 {[%clk 0:01:07]} 16... Rb8 {[%clk 0:02:02.4]} 17.
b3 {[%clk 0:00:58.1]} 17... h5 {[%clk 0:01:59.1]} 18. Qf3 {[%clk 0:00:38.3]}
18... g6 {[%clk 0:01:57.8]} 19. Kh1 {[%clk 0:00:26]} 19... Bb7 {[%clk
0:01:40.6]} 20. Rad1 {[%clk 0:00:20.9]} 20... h4 {[%clk 0:01:14.3]} 21. h3
{[%clk 0:00:20.4]} 21... Rh5 {[%clk 0:01:13.4]} 22. Ne2 {[%clk 0:00:19]} 22...
Be7 {[%clk 0:01:13.4]} 23. a4 {[%clk 0:00:18.4]} 23... Rf5 {[%clk 0:01:12.1]}
24. Ng1 {[%clk 0:00:17.2]} 24... Kd7 {[%clk 0:01:08.9]} 25. Rf2 {[%clk
0:00:15.8]} 25... Rg8 {[%clk 0:01:08.9]} 26. Qg4 {[%clk 0:00:15.9]} 26... g5
{[%clk 0:01:08.8]} 27. Nf3 {[%clk 0:00:15]} 27... d4 {[%clk 0:01:07.6]} 28. Rg1
{[%clk 0:00:12.6]} 28... Qe4 {[%clk 0:01:07.2]} 29. fxg5 {[%clk 0:00:11.6]}
29... Qxc2 {[%clk 0:00:51.3]} 30. Be1 {[%clk 0:00:08.3]} 30... Qe4 {[%clk
0:00:50.6]} 31. Qxe4 {[%clk 0:00:08.1]} 31... Bxe4 {[%clk 0:00:51.5]} 32. Nxh4
{[%clk 0:00:08.5]} 32... Rxf2 {[%clk 0:00:47]} 33. Bxf2 {[%clk 0:00:09.4]} 33...
Rb8 {[%clk 0:00:40.4]} 34. Nf3 {[%clk 0:00:09.4]} 34... Rxb3 {[%clk 0:00:31.9]}
35. Nd2 {[%clk 0:00:06.4]} 35... Rxh3# {[%clk 0:00:32.4]} 0-1

[Event "*** SCC Grand Prix: Titled Tuesday Blitz"]
[Site "Chess.com"]
[Date "2020.08.11"]
[Round "2"]
[White "Son_of_Sultan"]
[Black "Alexsur1981"]
[Result "0-1"]
[WhiteElo "2703"]
[BlackElo "2532"]
[TimeControl "180+1"]
[EndTime "10:18:30 PDT"]
[Termination "Alexsur1981 won by resignation"]

1. d4 {[%clk 0:02:57.6]} 1... d6 {[%clk 0:02:59.3]} 2. Nf3 {[%clk 0:02:54.1]}
2... Bg4 {[%clk 0:02:59.1]} 3. Nbd2 {[%clk 0:02:47.3]} 3... Nd7 {[%clk
0:02:58.5]} 4. h3 {[%clk 0:02:45.8]} 4... Bh5 {[%clk 0:02:57.9]} 5. g4 {[%clk
0:02:41.1]} 5... Bg6 {[%clk 0:02:57.9]} 6. Nh4 {[%clk 0:02:40.2]} 6... e5 {[%clk
0:02:55.9]} 7. Nxg6 {[%clk 0:02:39.4]} 7... hxg6 {[%clk 0:02:56.8]} 8. c3 {[%clk
0:02:37.6]} 8... c6 {[%clk 0:02:54.7]} 9. Qb3 {[%clk 0:02:29.2]} 9... Qc7 {[%clk
0:02:52]} 10. Bg2 {[%clk 0:02:22]} 10... exd4 {[%clk 0:02:42.3]} 11. cxd4 {[%clk
0:02:20.9]} 11... d5 {[%clk 0:02:43]} 12. e4 {[%clk 0:02:01.2]} 12... dxe4
{[%clk 0:02:41.9]} 13. Nxe4 {[%clk 0:02:01]} 13... Be7 {[%clk 0:02:41.1]} 14.
Be3 {[%clk 0:01:52.2]} 14... Ngf6 {[%clk 0:02:35.5]} 15. Ng5 {[%clk 0:01:48.4]}
15... O-O {[%clk 0:02:35.5]} 16. O-O {[%clk 0:01:45.5]} 16... Nb6 {[%clk
0:02:32.5]} 17. Rac1 {[%clk 0:01:39.7]} 17... Qd7 {[%clk 0:02:27.2]} 18. Nf3
{[%clk 0:01:19.1]} 18... Qd5 {[%clk 0:02:19.1]} 19. Qxd5 {[%clk 0:01:05.3]}
19... Nfxd5 {[%clk 0:02:16.9]} 20. Ne5 {[%clk 0:01:00.1]} 20... g5 {[%clk
0:02:12.5]} 21. Rfe1 {[%clk 0:00:56.6]} 21... Rfe8 {[%clk 0:02:08.6]} 22. a3
{[%clk 0:00:55.7]} 22... f6 {[%clk 0:02:08.1]} 23. Nd3 {[%clk 0:00:54.6]} 23...
Bd6 {[%clk 0:02:03]} 24. Bd2 {[%clk 0:00:50.9]} 24... Kf7 {[%clk 0:01:52.5]} 25.
Nc5 {[%clk 0:00:50.4]} 25... Rxe1+ {[%clk 0:01:43.5]} 26. Rxe1 {[%clk
0:00:49.3]} 26... Bxc5 {[%clk 0:01:33]} 27. dxc5 {[%clk 0:00:48.4]} 27... Nc4
{[%clk 0:01:33.5]} 28. Bxd5+ {[%clk 0:00:44.6]} 28... cxd5 {[%clk 0:01:34.4]}
29. Bc3 {[%clk 0:00:45.3]} 29... Rd8 {[%clk 0:01:32.8]} 30. Bd4 {[%clk
0:00:44.1]} 30... Na5 {[%clk 0:01:31.1]} 31. Kg2 {[%clk 0:00:32.6]} 31... Nc6
{[%clk 0:01:31.1]} 32. Rd1 {[%clk 0:00:32.2]} 32... a5 {[%clk 0:01:30.4]} 33. b3
{[%clk 0:00:28.4]} 33... Ke6 {[%clk 0:01:29.7]} 34. Kf3 {[%clk 0:00:27.2]} 34...
Rh8 {[%clk 0:01:26.3]} 35. Kg2 {[%clk 0:00:26.6]} 35... Nxd4 {[%clk 0:01:14]}
36. Rxd4 {[%clk 0:00:25.8]} 36... Ke5 {[%clk 0:01:14.6]} 37. Rd3 {[%clk
0:00:24.3]} 37... d4 {[%clk 0:01:14.7]} 38. Kf1 {[%clk 0:00:20.1]} 38... Kd5
{[%clk 0:01:14.5]} 39. b4 {[%clk 0:00:19.2]} 39... axb4 {[%clk 0:01:15.4]} 40.
axb4 {[%clk 0:00:20.1]} 40... Kc4 {[%clk 0:01:15.8]} 41. Rd2 {[%clk 0:00:20.3]}
41... d3 {[%clk 0:01:15.3]} 42. b5 {[%clk 0:00:17.9]} 42... Rc8 {[%clk
0:01:11.9]} 43. c6 {[%clk 0:00:14.8]} 43... bxc6 {[%clk 0:01:12.8]} 44. bxc6
{[%clk 0:00:15.5]} 44... Rxc6 {[%clk 0:01:13.7]} 45. Ra2 {[%clk 0:00:14.3]}
45... Kb3 {[%clk 0:01:11.8]} 46. Ra1 {[%clk 0:00:12.5]} 46... Kb2 {[%clk
0:01:09.5]} 0-1

[Event "*** SCC Grand Prix: Titled Tuesday Blitz"]
[Site "Chess.com"]
[Date "2020.08.11"]
[Round "2"]
[White "Fy_Rakotomaharo"]
[Black "sergivila"]
[Result "1-0"]
[WhiteElo "2673"]
[BlackElo "2426"]
[TimeControl "180+1"]
[EndTime "10:18:30 PDT"]
[Termination "Fy_Rakotomaharo won by resignation"]

1. e4 {[%clk 0:03:00.9]} 1... c5 {[%clk 0:02:58.8]} 2. Nf3 {[%clk 0:03:01.2]}
2... d6 {[%clk 0:02:57.7]} 3. d4 {[%clk 0:03:01.4]} 3... cxd4 {[%clk 0:02:57.8]}
4. Nxd4 {[%clk 0:03:02.3]} 4... Nf6 {[%clk 0:02:57.4]} 5. Nc3 {[%clk 0:03:03]}
5... a6 {[%clk 0:02:56.6]} 6. h4 {[%clk 0:03:03.5]} 6... e5 {[%clk 0:02:52.6]}
7. Nb3 {[%clk 0:03:03.8]} 7... Be6 {[%clk 0:02:46.9]} 8. f4 {[%clk 0:03:04.1]}
8... Nbd7 {[%clk 0:02:20.6]} 9. f5 {[%clk 0:02:58.8]} 9... Bxb3 {[%clk
0:02:19.7]} 10. axb3 {[%clk 0:02:59.7]} 10... Rc8 {[%clk 0:02:17.1]} 11. Qf3
{[%clk 0:02:56.4]} 11... h5 {[%clk 0:02:00.8]} 12. Bg5 {[%clk 0:02:55.3]} 12...
Be7 {[%clk 0:02:00.3]} 13. Bc4 {[%clk 0:02:49.2]} 13... b5 {[%clk 0:01:41.4]}
14. Bd3 {[%clk 0:02:41.1]} 14... Qb6 {[%clk 0:01:39.1]} 15. Be3 {[%clk
0:02:30.5]} 15... Qb7 {[%clk 0:01:35.9]} 16. O-O {[%clk 0:02:23.1]} 16... Bd8
{[%clk 0:01:01.6]} 17. Ra2 {[%clk 0:02:20.8]} 17... Bb6 {[%clk 0:00:55.6]} 18.
Bxb6 {[%clk 0:02:12.2]} 18... Qxb6+ {[%clk 0:00:51.6]} 19. Qf2 {[%clk
0:02:12.3]} 19... Qb7 {[%clk 0:00:44]} 20. Rfa1 {[%clk 0:02:02.1]} 20... Rc6
{[%clk 0:00:38.8]} 21. Nd5 {[%clk 0:01:41.3]} 21... Nxd5 {[%clk 0:00:37.7]} 22.
exd5 {[%clk 0:01:42.2]} 22... Rb6 {[%clk 0:00:36.7]} 23. c4 {[%clk 0:01:42.6]}
23... O-O {[%clk 0:00:33.1]} 24. cxb5 {[%clk 0:01:16.9]} 24... Qxd5 {[%clk
0:00:27.1]} 25. Bc4 {[%clk 0:01:16]} 25... Qa8 {[%clk 0:00:23]} 26. Rxa6 {[%clk
0:01:15.6]} 26... Rxa6 {[%clk 0:00:22.3]} 27. Rxa6 {[%clk 0:00:56.4]} 27... Qb8
{[%clk 0:00:22]} 28. Qa7 {[%clk 0:00:55.9]} 28... Qd8 {[%clk 0:00:17.7]} 29.
Rxd6 {[%clk 0:00:55.2]} 29... Qxh4 {[%clk 0:00:15.9]} 30. Rxd7 {[%clk
0:00:45.6]} 30... Qe1+ {[%clk 0:00:15.6]} 31. Bf1 {[%clk 0:00:46.2]} 31... e4
{[%clk 0:00:14.7]} 32. Qf2 {[%clk 0:00:37.4]} 32... Qc1 {[%clk 0:00:14.5]} 33.
Qd2 {[%clk 0:00:33.1]} 33... Qc5+ {[%clk 0:00:12.9]} 34. Qd4 {[%clk 0:00:31]}
34... Qxf5 {[%clk 0:00:12.1]} 35. Rd8 {[%clk 0:00:31]} 35... h4 {[%clk
0:00:10.7]} 36. Rxf8+ {[%clk 0:00:30.1]} 1-0

[Event "*** SCC Grand Prix: Titled Tuesday Blitz"]
[Site "Chess.com"]
[Date "2020.08.11"]
[Round "2"]
[White "AlexTriapishko"]
[Black "XiaoKangZhong"]
[Result "1-0"]
[WhiteElo "2670"]
[BlackElo "2422"]
[TimeControl "180+1"]
[EndTime "10:18:31 PDT"]
[Termination "AlexTriapishko won by resignation"]

1. e4 {[%clk 0:03:00.9]} 1... c6 {[%clk 0:03:00]} 2. Nf3 {[%clk 0:03:00.5]} 2...
d5 {[%clk 0:03:00.2]} 3. d3 {[%clk 0:03:01.4]} 3... dxe4 {[%clk 0:02:55.7]} 4.
dxe4 {[%clk 0:03:02.3]} 4... Qxd1+ {[%clk 0:02:56.2]} 5. Kxd1 {[%clk 0:03:03]}
5... f6 {[%clk 0:02:56.8]} 6. Nfd2 {[%clk 0:03:02.4]} 6... e5 {[%clk 0:02:56.8]}
7. f3 {[%clk 0:03:03]} 7... Be6 {[%clk 0:02:50.2]} 8. Bc4 {[%clk 0:03:02.8]}
8... Bxc4 {[%clk 0:02:50.2]} 9. Nxc4 {[%clk 0:03:03.7]} 9... Nd7 {[%clk
0:02:50.8]} 10. c3 {[%clk 0:03:02.3]} 10... O-O-O {[%clk 0:02:50.6]} 11. Kc2
{[%clk 0:03:02.9]} 11... b5 {[%clk 0:02:46]} 12. Na5 {[%clk 0:03:02.5]} 12...
Kc7 {[%clk 0:02:46]} 13. a4 {[%clk 0:02:58.9]} 13... a6 {[%clk 0:02:43.1]} 14.
Rd1 {[%clk 0:02:39.4]} 14... Bc5 {[%clk 0:02:31.1]} 15. b4 {[%clk 0:02:38.3]}
15... Bb6 {[%clk 0:02:25.8]} 16. axb5 {[%clk 0:02:30.1]} 16... axb5 {[%clk
0:02:24.5]} 17. c4 {[%clk 0:02:30.6]} 17... Ne7 {[%clk 0:02:21.3]} 18. c5 {[%clk
0:02:14.6]} 18... Bxa5 {[%clk 0:02:20.9]} 19. Rxa5 {[%clk 0:02:15.5]} 19... Ra8
{[%clk 0:02:18.5]} 20. Rxa8 {[%clk 0:02:15.8]} 20... Rxa8 {[%clk 0:02:18.3]} 21.
Nc3 {[%clk 0:02:16.7]} 21... Nf8 {[%clk 0:02:10.9]} 22. Be3 {[%clk 0:02:15.4]}
22... Ne6 {[%clk 0:02:10.5]} 23. Rd6 {[%clk 0:02:05.8]} 23... Nd8 {[%clk
0:01:53.8]} 24. f4 {[%clk 0:01:55.1]} 24... Nf7 {[%clk 0:01:42.4]} 25. Rd1
{[%clk 0:01:49.6]} 25... Ng6 {[%clk 0:01:38.7]} 26. f5 {[%clk 0:01:43.3]} 26...
Ne7 {[%clk 0:01:34]} 27. g4 {[%clk 0:01:43]} 27... h6 {[%clk 0:01:33.8]} 28. Kb3
{[%clk 0:01:40]} 28... Rh8 {[%clk 0:01:26.9]} 29. Rg1 {[%clk 0:01:37.2]} 29...
Rg8 {[%clk 0:01:09.9]} 30. Ne2 {[%clk 0:01:13.3]} 30... g5 {[%clk 0:01:07.5]}
31. fxg6 {[%clk 0:00:56.4]} 31... Rxg6 {[%clk 0:01:05]} 32. h3 {[%clk
0:00:56.8]} 32... Ng5 {[%clk 0:00:57.5]} 33. Bxg5 {[%clk 0:00:54.5]} 33... fxg5
{[%clk 0:00:50.8]} 34. Rf1 {[%clk 0:00:53.4]} 34... Kd7 {[%clk 0:00:50]} 35. Ng3
{[%clk 0:00:51.7]} 35... Rg8 {[%clk 0:00:43.3]} 36. Nh5 {[%clk 0:00:39.2]} 36...
Ra8 {[%clk 0:00:27.5]} 37. Rd1+ {[%clk 0:00:34.3]} 37... Kc7 {[%clk 0:00:23.6]}
38. Ng7 {[%clk 0:00:34.4]} 38... Ra1 {[%clk 0:00:11.3]} 39. Ne6+ {[%clk
0:00:32.1]} 39... Kb8 {[%clk 0:00:10.7]} 40. Rxa1 {[%clk 0:00:31.8]} 1-0